bitfinex/quotes_ETHUSD_20220101
["timestamp","ask_amount","ask_price","bid_price","bid_amount"]
[1640997264998,0.91944226,3701.0,3700.5,0.00397896]
[1640997265396,0.0614,3701.5,3700.5,0.01637898]
[1640997265604,0.00093297,3701.0,3700.5,0.01240002]
[1640997265798,0.00093297,3701.0,3700.6,0.00341054]
[1640997265799,3.297e-05,3700.9,3700.6,0.00341054]
[1640997266700,3.297e-05,3700.9,3700.7,1.3511]
[1640997266905,3.297e-05,3700.9,3700.6,0.00341054]
[1640997267107,3.297e-05,3700.9,3700.8,0.00227369]
[1640997267300,3.297e-05,3700.9,3700.6,0.00341054]
[1640997270559,3.297e-05,3700.9,3700.6,0.30341054]
[1640997270960,3.297e-05,3700.9,3700.7,0.01524214]
[1640997271362,3.297e-05,3700.9,3700.8,0.00227369]
[1640997276270,3.297e-05,3700.9,3700.8,0.01467371]
[1640997276469,0.00084521,3700.9,3700.8,0.01467371]
[1640997276670,0.00169042,3700.9,3700.8,0.01467371]
[1640997277069,1.01307509,3701.6,3700.8,0.01467371]
[1640997277471,1.01307509,3701.6,3700.9,0.00284212]
[1640997277774,1.31307509,3701.6,3700.9,0.00284212]
[1640997278172,0.67572,3701.3,3700.9,0.00284212]
[1640997281911,0.67572,3701.3,3701.0,0.01240002]
[1640997282310,0.67572,3701.3,3701.1,0.00170527]
[1640997282511,1.01307509,3701.6,3701.1,0.00170527]
[1640997282961,0.67565,3701.7,3701.1,0.00170527]
[1640997283357,0.00113684,3701.6,3701.1,0.00170527]
[1640997287408,0.00113684,3701.6,3701.2,0.01240002]
[1640997289111,0.00113684,3701.6,3701.5,1.30746895]
[1640997289316,0.00113684,3701.6,3701.5,2.25956895]
[1640997289511,0.00113684,3701.6,3701.5,5.34334856]
[1640997289710,0.00113684,3701.6,3701.5,3.85956895]
[1640997291577,0.00113684,3701.6,3701.5,0.9521]
[1640997291781,0.00113684,3701.6,3701.4,1.35075]
[1640997292181,0.00113684,3701.6,3701.2,0.01240002]
[1640997297117,0.00113684,3701.6,3701.2,0.68792002]
[1640997297617,0.00113684,3701.6,3701.2,0.98792002]
[1640997297855,0.00113684,3701.6,3701.2,0.68792002]
[1640997299966,0.00113684,3701.6,3701.2,0.01240002]
[1640997303011,0.00113684,3701.6,3701.2,0.68794002]
[1640997303212,0.00113684,3701.6,3701.2,0.01240002]
[1640997304218,0.00113684,3701.6,3701.5,1.14114841]
[1640997304419,0.00113684,3701.6,3701.5,1.44114841]
[1640997304619,0.00113684,3701.6,3701.5,1.14114841]
[1640997305853,0.00113684,3701.6,3701.4,1.3509]
[1640997306957,0.00113684,3701.6,3701.2,1.0744262]
[1640997307157,0.00113684,3701.6,3701.2,0.01240002]
[1640997308560,0.00113684,3701.6,3701.2,0.68794002]
[1640997311319,0.00113684,3701.6,3701.2,0.98794002]
[1640997311512,0.00113684,3701.6,3701.4,1.35088]
[1640997311716,0.00113684,3701.6,3701.4,2.24868]
[1640997311916,0.00113684,3701.6,3701.4,2.54868]
[1640997313367,0.7347198,3702.6,3701.4,2.54868]
[1640997313569,0.7347198,3702.6,3701.9,0.67541]
[1640997313768,0.00625266,3702.5,3701.9,0.67541]
[1640997314169,0.00568423,3702.4,3701.9,0.67541]
[1640997314570,0.00511581,3702.3,3701.9,0.67541]
[1640997314971,0.00454738,3702.2,3701.9,0.67541]
[1640997315378,0.00397896,3702.1,3701.8,0.67546]
[1640997315575,1.34846467,3702.1,3701.4,1.65094]
[1640997315776,0.00341054,3702.0,3701.4,1.65094]
[1640997316175,0.00284211,3701.9,3701.4,1.65094]
[1640997316377,0.00284211,3701.9,3701.4,0.3]
[1640997316610,0.00227369,3701.8,3701.5,0.67551]
[1640997317012,0.00170527,3701.7,3701.5,0.67551]
[1640997317412,0.00113684,3701.6,3701.5,0.67551]
[1640997317613,0.00113684,3701.6,3701.4,1.35094]
[1640997319818,0.00113684,3701.6,3701.4,1.65094]
[1640997321873,0.00113684,3701.6,3701.4,2.53595]
[1640997322066,0.00113684,3701.6,3701.5,0.3]
[1640997322270,0.00113684,3701.6,3701.5,2.25691249]
[1640997324116,0.00113684,3701.6,3701.5,4.42514677]
[1640997324320,0.0592899,3703.0,3702.2,0.67526]
[1640997324522,0.0592899,3703.0,3702.6,0.67517]
[1640997324718,0.0592899,3703.0,3702.6,3.64753124]
[1640997324719,0.00738951,3702.9,3702.6,3.64753124]
[1640997324920,0.00738951,3702.9,3702.6,3.94753124]
[1640997325120,0.00682109,3702.8,3702.7,4.48819997]
[1640997325322,0.00682109,3702.8,3702.7,9.865624]
[1640997325522,0.00682109,3702.8,3702.7,10.165624]
[1640997325921,0.0623,3704.6,3702.7,5.815624]
[1640997326121,0.0623,3704.6,3703.0,0.67506]
[1640997326422,0.00227369,3703.2,3703.0,1.65012]
[1640997326625,0.00227369,3703.2,3703.0,2.65012]
[1640997326825,0.00170527,3703.1,3703.0,1.97506]
[1640997327030,0.00170527,3703.1,3703.0,1.27506]
[1640997327425,0.00170527,3703.1,3703.0,0.67506]
[1640997328770,0.00170527,3703.1,3703.0,0.97506]
[1640997328972,0.00170527,3703.1,3703.0,1.3079227]
[1640997329171,0.00170527,3703.1,3703.0,4.59623882]
[1640997329370,0.00170527,3703.1,3703.0,4.63494558]
[1640997329572,0.00170527,3703.1,3703.0,4.59623882]
[1640997329769,0.00170527,3703.1,3703.0,2.32000995]
[1640997329970,0.00170527,3703.1,3703.0,2.28746002]
[1640997330169,0.00170527,3703.1,3703.0,1.32259144]
[1640997330370,0.00170527,3703.1,3703.0,3.51331728]
[1640997330572,0.00170527,3703.1,3703.0,4.55098074]
[1640997330771,0.00170527,3703.1,3703.0,4.51331728]
[1640997330972,0.00170527,3703.1,3703.0,4.5448077]
[1640997331173,0.00170527,3703.1,3703.0,4.51331728]
[1640997331474,0.00170527,3703.1,3703.0,4.54993581]
[1640997331720,0.00170527,3703.1,3703.0,4.51331728]
[1640997332131,0.108076,3704.3,3703.1,0.6749785]
[1640997332325,0.108076,3704.3,3703.2,2.93877837]
[1640997332523,0.108076,3704.3,3704.0,1.27915272]
[1640997332728,0.108076,3704.3,3704.1,0.67497]
[1640997333124,0.108076,3704.3,3703.4,3.2079]
[1640997334325,1.19143902,3704.3,3703.7,0.6751]
[1640997334927,0.108076,3704.3,3703.5,1.21060795]
[1640997335127,0.108076,3704.3,3703.5,1.51060795]
[1640997335357,0.108076,3704.3,3703.8,0.01240002]
[1640997335559,0.108076,3704.3,3703.8,0.68748002]
[1640997337163,0.108076,3704.3,3703.9,1.34998]
[1640997337966,0.108076,3704.3,3704.1,1.17748427]
[1640997338165,0.108076,3704.3,3704.1,1.85246427]
[1640997338364,0.108076,3704.3,3704.1,2.15246427]
[1640997338564,0.108076,3704.3,3704.1,1.85246427]
[1640997338765,0.00096099,3704.2,3704.1,1.85246427]
[1640997339217,0.00096099,3704.2,3704.1,2.15246427]
[1640997339414,0.00096099,3704.2,3704.1,1.85246427]
[1640997339615,0.00096099,3704.2,3704.1,2.15246427]
[1640997340017,0.00096099,3704.2,3704.1,1.85246427]
[1640997340614,0.00096099,3704.2,3704.1,1.86486429]
[1640997341818,0.00096099,3704.2,3704.1,2.16486429]
[1640997342216,0.00096099,3704.2,3704.1,1.86486429]
[1640997342620,0.00096099,3704.2,3704.1,2.16486429]
[1640997343060,0.00096099,3704.2,3704.1,4.42085139]
[1640997343861,0.00096099,3704.2,3704.1,2.16486429]
[1640997344663,0.108077,3704.7,3704.2,3.8]
[1640997344864,0.07908731,3704.7,3704.4,0.71371848]
[1640997345064,0.00852635,3704.6,3704.4,3.57190843]
[1640997345268,0.40989889,3706.2,3704.7,1.34942]
[1640997345662,0.00852635,3706.1,3704.7,1.64942]
[1640997345866,0.00852635,3706.1,3704.7,1.94942]
[1640997346062,0.00795793,3706.0,3704.7,1.94942]
[1640997346262,0.00795793,3706.0,3704.8,0.01240002]
[1640997346465,0.0073895,3705.9,3705.3,0.6747]
[1640997346727,0.108077,3706.2,3705.1,2.45446568]
[1640997346928,0.108077,3706.2,3705.4,0.00284211]
[1640997347136,0.00113685,3706.1,3705.4,0.00284211]
[1640997348029,1.32618141,3705.8,3705.4,0.00284211]
[1640997348435,1.32618141,3705.8,3704.9,0.00568423]
[1640997348832,1.62618141,3705.8,3704.9,0.00568423]
[1640997349033,0.67494,3705.4,3704.9,0.00568423]
[1640997349233,1.12861164,3705.1,3704.9,0.00568423]
[1640997350675,1.0,3705.7,3704.9,0.00568423]
[1640997350873,4.59337,3705.8,3704.9,0.00568423]
[1640997351571,4.59337,3705.8,3705.0,0.01240002]
[1640997351773,1.0833011,3705.3,3705.0,0.01240002]
[1640997351975,1.0833011,3705.3,3705.1,0.00454738]
[1640997354822,1.07655201,3705.3,3705.1,0.00454738]
[1640997355023,1.67655201,3705.3,3705.1,0.00454738]
[1640997356023,4.95,3705.2,3703.6,2.32686926]
[1640997356226,0.67514,3704.4,3703.1,2.32686926]
[1640997356424,0.67514,3704.4,3703.0,1.68548553]
[1640997356425,0.67514,3704.4,3703.7,0.00795793]
[1640997357125,0.3,3704.8,3703.8,0.01070572]
[1640997357424,1.0,3705.1,3703.8,0.01070572]
[1640997357425,0.0624,3705.1,3703.9,0.00682109]
[1640997358063,0.0624,3705.1,3703.9,0.68186109]
[1640997358263,1.0024643,3704.9,3703.9,0.68186109]
[1640997358460,1.6775043,3704.9,3704.0,0.00625266]
[1640997360262,1.7855803,3704.9,3704.0,0.00625266]
[1640997361067,1.7855803,3704.9,3703.9,0.00682109]
[1640997362523,1.7855803,3704.9,3703.9,0.68185109]
[1640997362921,1.7855803,3704.9,3704.0,0.01695751]
[1640997363319,1.7855803,3704.9,3704.1,0.00568424]
[1640997363727,1.7855803,3704.9,3704.2,1.30880844]
[1640997364026,1.5439929,3704.3,3704.2,1.30880844]
[1640997364226,1.5439929,3704.3,3704.1,1.30880844]
[1640997364227,1.9191929,3704.3,3704.1,1.30880844]
[1640997364427,1.9191929,3704.3,3704.2,0.00511582]
[1640997364623,3.2191929,3704.3,3704.2,0.00511582]
[1640997364824,2.2191929,3704.3,3704.2,0.00511582]
[1640997365223,2.2191929,3704.3,3704.1,0.00568424]
[1640997366380,0.9752,3704.3,3704.1,0.00568424]
[1640997367281,0.6752,3704.3,3704.1,0.00568424]
[1640997367486,3.69756224,3705.6,3704.1,0.00568424]
[1640997367487,0.108076,3704.9,3704.7,4.64563231]
[1640997367685,0.108076,3704.9,3704.8,4.01277238]
[1640997367887,0.108076,3704.9,3704.8,0.01447766]
[1640997368083,0.108076,3705.1,3704.9,3.45]
[1640997368284,0.108076,3705.1,3704.8,1.01447766]
[1640997368588,0.108076,3705.1,3704.9,1.04388307]
[1640997369416,0.108076,3705.1,3704.9,3.74388307]
[1640997374973,0.108076,3705.1,3704.9,2.70113685]
[1640997375374,0.108076,3705.1,3705.0,0.01070311]
[1640997380122,0.108076,3705.2,3705.0,0.01070311]
[1640997380371,0.108076,3705.2,3705.0,0.68542311]
[1640997381876,0.108076,3705.2,3705.0,2.92179286]
[1640997382274,0.108076,3705.2,3705.0,0.68542311]
[1640997382476,0.108076,3705.2,3705.0,2.90966112]
[1640997382678,0.108076,3705.2,3705.1,2.22664854]
[1640997383478,0.108076,3705.2,3705.0,1.25042311]
[1640997383778,0.05366904,3705.2,3705.0,1.25042311]
[1640997384409,0.05366904,3705.2,3705.0,0.68542311]
[1640997385417,0.05366904,3705.2,3705.0,2.96228051]
[1640997385615,0.05366904,3705.2,3705.0,0.68542311]
[1640997385812,0.05366904,3705.2,3705.1,2.22697133]
[1640997386220,0.05366904,3705.2,3705.0,2.66896155]
[1640997386417,0.05366904,3705.2,3705.0,1.99423155]
[1640997387116,0.05366904,3705.2,3705.0,0.68542311]
[1640997389465,0.05366904,3705.2,3705.0,0.01070311]
[1640997394427,0.05366904,3705.2,3705.0,3.22576492]
[1640997394623,0.05366904,3705.2,3705.0,2.22576492]
[1640997394930,0.05366904,3705.2,3705.1,2.24673514]
[1640997395122,0.05366904,3705.2,3705.0,0.01070311]
[1640997397370,0.05366904,3705.2,3705.0,3.23896531]
[1640997397570,0.05366904,3705.2,3705.1,2.2208357]
[1640997397770,0.05366904,3705.2,3705.0,0.01070311]
[1640997398671,0.05366904,3705.2,3705.0,1.01070311]
[1640997398872,0.05366904,3705.2,3705.0,0.01070311]
[1640997399528,0.05366904,3705.2,3705.0,1.01070311]
[1640997399719,0.05366904,3705.2,3705.0,0.01070311]
[1640997405372,0.05366904,3705.2,3705.0,1.01070311]
[1640997405573,0.05366904,3705.2,3705.0,0.01070311]
[1640997405974,0.05366904,3705.2,3705.0,2.21693567]
[1640997406174,0.05366904,3705.2,3705.0,0.01070311]
[1640997406378,0.05366904,3705.2,3705.0,1.31070311]
[1640997406613,0.05366904,3705.2,3705.0,0.01070311]
[1640997407017,0.05366904,3705.2,3705.0,1.01070311]
[1640997407220,0.05366904,3705.2,3705.0,0.01070311]
[1640997410023,0.05366904,3705.2,3705.1,1.30880844]
[1640997413476,0.05366904,3705.2,3705.0,1.31951155]
[1640997414210,0.05366904,3705.2,3705.1,3.32472]
[1640997414410,0.05366904,3705.2,3705.1,1.98352844]
[1640997414612,0.05366904,3705.2,3705.1,0.67472]
[1640997415015,0.05213315,3705.2,3705.1,2.92468363]
[1640997415413,0.05213315,3705.2,3705.1,0.67472]
[1640997416113,0.05213315,3705.2,3705.0,0.01070311]
[1640997416312,0.05213315,3705.2,3705.0,1.3869853]
[1640997416913,0.05213315,3705.2,3705.0,0.01070311]
[1640997417517,0.05213315,3705.2,3705.0,0.68543311]
[1640997417717,0.05213315,3705.2,3705.1,2.25872888]
[1640997418165,0.05213315,3705.2,3705.1,4.93501107]
[1640997418366,0.05213315,3705.2,3705.1,5.23501107]
[1640997418766,0.05213315,3705.2,3705.1,3.63501107]
[1640997418971,0.05213315,3705.2,3705.0,2.0617153]
[1640997419571,0.05213315,3705.2,3705.0,0.68543311]
[1640997420173,0.05213315,3705.2,3705.1,2.22455903]
[1640997420373,0.05213315,3705.2,3705.1,2.52455903]
[1640997420670,0.05213315,3705.2,3705.1,2.23535126]
[1640997420873,0.05213315,3705.2,3705.1,3.83535126]
[1640997421838,0.05213315,3705.2,3705.1,5.18465126]
[1640997422041,15.95383,3707.0,3705.2,3.35]
[1640997422239,15.95383,3707.0,3705.1,8.68465126]
[1640997422240,14.6045,3707.0,3705.8,1.3492]
[1640997422440,0.00795792,3706.5,3705.7,1.34919]
[1640997422841,0.0073895,3706.4,3705.7,1.34919]
[1640997423238,0.00682108,3706.3,3705.7,2.69864271]
[1640997423438,0.00682108,3706.3,3706.0,0.67465]
[1640997423738,0.00625265,3706.2,3706.0,0.67465]
[1640997424140,0.00568423,3706.1,3706.0,0.67465]
[1640997424340,0.00568423,3706.1,3705.4,4.38108]
[1640997424539,0.00568423,3706.1,3705.7,0.67471]
[1640997424844,0.00511581,3706.0,3705.7,0.67471]
[1640997425238,0.00454738,3705.9,3705.7,0.67471]
[1640997425668,0.00397896,3705.8,3705.7,0.67471]
[1640997427067,0.00397896,3705.8,3705.7,0.68541092]
[1640997432864,0.00397896,3705.8,3705.7,3.38541092]
[1640997433866,0.00480783,3705.8,3705.7,3.38541092]
[1640997441271,0.00480783,3705.8,3705.7,2.71070092]
[1640997442073,1.31280258,3705.8,3705.7,2.71070092]
[1640997442482,5.26280258,3705.8,3705.7,2.45990092]
[1640997442677,1.31280258,3705.8,3705.7,2.45990092]
[1640997445946,1.91280258,3705.8,3705.7,2.45990092]
[1640997446445,2.91280258,3705.8,3705.7,2.45990092]
[1640997447449,1.31280258,3705.8,3705.7,2.45990092]
[1640997447872,1.91280258,3705.8,3705.7,2.45990092]
[1640997448072,2.91280258,3705.8,3705.7,2.45990092]
[1640997450775,1.31280258,3705.8,3705.7,2.45990092]
[1640997451174,1.91280258,3705.8,3705.7,2.45990092]
[1640997451617,2.91280258,3705.8,3705.7,2.45990092]
[1640997451818,1.91280258,3705.8,3705.7,2.45990092]
[1640997452120,2.91280258,3705.8,3705.7,2.45990092]
[1640997452319,1.31280258,3705.8,3705.7,2.45990092]
[1640997453523,0.00480783,3705.8,3705.7,2.45990092]
[1640997455970,0.00082887,3705.8,3705.7,2.45990092]
[1640997465896,0.00082887,3705.8,3705.7,3.22650092]
[1640997466495,0.00082887,3705.8,3705.7,4.28343628]
[1640997476533,0.00082887,3705.8,3705.7,8.08555111]
[1640997476836,0.00082887,3705.8,3705.7,8.22375108]
[1640997478174,0.00082887,3705.8,3705.7,8.24175713]
[1640997478370,0.00082887,3705.8,3705.7,4.42163625]
[1640997478875,0.00082887,3705.8,3705.7,4.72163625]
[1640997479079,0.00082887,3705.8,3705.7,5.72163625]
[1640997480278,0.00082887,3705.8,3705.7,4.42163625]
[1640997481480,0.00082887,3705.8,3705.7,4.72163625]
[1640997481736,0.00082887,3705.8,3705.7,5.72163625]
[1640997482541,0.00082887,3705.8,3705.7,4.42163625]
[1640997483935,0.00082887,3705.8,3705.7,5.72163625]
[1640997484436,0.00082887,3705.8,3705.7,7.9391129]
[1640997484637,0.00082887,3705.8,3705.7,5.72163625]
[1640997485039,0.00082887,3705.8,3705.7,4.42163625]
[1640997485481,0.00082887,3705.8,3705.7,6.92992136]
[1640997485682,0.00082887,3705.8,3705.7,8.22992136]
[1640997488587,0.00082887,3705.8,3705.7,6.02163625]
[1640997488787,0.00082887,3705.8,3705.7,8.22635553]
[1640997490427,0.00082887,3705.8,3705.7,6.02163625]
[1640997490626,0.00082887,3705.8,3705.7,8.21612112]
[1640997492229,0.00082887,3705.8,3705.7,6.02163625]
[1640997492430,0.00082887,3705.8,3705.7,8.28862359]
[1640997493078,0.00082887,3705.8,3705.7,4.42163625]
[1640997494286,0.00082887,3705.8,3705.7,5.02163625]
[1640997494484,0.00082887,3705.8,3705.7,6.02163625]
[1640997494689,0.00082887,3705.8,3705.7,8.2138589]
[1640997496089,0.00082887,3705.8,3705.7,5.72163625]
[1640997499036,0.00082887,3705.8,3705.7,6.02163625]
[1640997499737,0.00082887,3705.8,3705.7,5.72163625]
[1640997500369,0.00082887,3705.8,3705.7,4.42163625]
[1640997500578,0.00082887,3705.8,3705.7,3.36470089]
[1640997502376,0.00082887,3705.8,3705.7,4.36470089]
[1640997502577,0.05890487,3706.6,3705.7,3.36470089]
[1640997502776,0.05890487,3706.6,3705.8,0.67463]
[1640997502976,0.00682108,3706.3,3705.8,0.67463]
[1640997503376,0.00625265,3706.2,3705.8,0.67463]
[1640997503776,0.00568423,3706.1,3705.8,0.67463]
[1640997504228,0.00511581,3706.0,3705.8,0.67463]
[1640997504728,0.00454738,3705.9,3705.8,0.67463]
[1640997504932,0.00454738,3705.9,3705.7,6.85835447]
[1640997505135,0.00795792,3705.9,3705.7,4.92187089]
[1640997505333,0.00397896,3705.8,3705.7,4.92187089]
[1640997505631,0.00397896,3705.8,3705.7,8.14721023]
[1640997506031,0.00397896,3705.8,3705.7,7.09804023]
[1640997506435,0.00397896,3705.8,3705.7,4.87270089]
[1640997506835,0.00397896,3705.8,3705.7,7.11315533]
[1640997508279,0.00397896,3705.8,3705.7,3.27270089]
[1640997509582,0.00397896,3705.8,3705.7,2.59810089]
[1640997513438,1.08214965,3706.2,3705.7,2.59810089]
[1640997513838,0.00170527,3706.1,3705.7,2.59810089]
[1640997514040,0.00170527,3706.1,3705.7,3.27276089]
[1640997514240,0.00113685,3706.0,3705.7,3.27276089]
[1640997518786,0.00113685,3706.0,3705.7,3.94737089]
[1640997521620,0.00113685,3706.0,3705.8,0.67459]
[1640997521822,0.00113685,3706.0,3705.8,0.97459]
[1640997522021,0.00113685,3706.0,3705.8,2.27459]
[1640997524478,0.00113685,3706.0,3705.8,0.67459]
[1640997524680,0.00113685,3706.0,3705.7,3.27276089]
[1640997529330,0.00113685,3706.0,3705.7,2.45990092]
[1640997529331,1.2450175,3705.8,3705.7,2.45990092]
[1640997532682,0.00113685,3706.0,3705.7,2.45990092]
[1640997533483,0.00113685,3706.0,3705.7,3.13458092]
[1640997537637,0.00113685,3706.0,3705.7,3.80921092]
[1640997538301,0.00113685,3706.0,3705.7,6.01503011]
[1640997538499,0.00113685,3706.0,3705.7,6.68961011]
[1640997539098,0.00113685,3706.0,3705.8,1.6]
[1640997539298,0.00113685,3706.0,3705.9,0.67458]
[1640997540503,0.00113685,3706.0,3705.8,1.6]
[1640997551228,0.00113685,3706.0,3705.9,2.48216508]
[1640997551430,0.00113685,3706.0,3705.9,0.98969997]
[1640997552234,0.00113685,3706.0,3705.9,1.66425997]
[1640997552636,0.00113685,3706.0,3705.9,2.71801036]
[1640997552882,0.00113685,3706.0,3705.9,5.01931956]
[1640997553084,0.05890487,3706.6,3706.0,4.9]
[1640997553286,0.05890487,3706.6,3706.2,1.3487532]
[1640997553485,0.00284211,3706.5,3706.3,0.67436]
[1640997553683,0.00284211,3706.5,3706.3,1.97436]
[1640997553884,0.00227369,3706.4,3706.3,1.97436]
[1640997555090,0.00227369,3706.4,3706.3,0.67436]
[1640997555584,0.00227369,3706.4,3706.3,16.51436]
[1640997555786,0.05890487,3706.6,3706.4,4.9]
[1640997555985,0.05890487,3706.6,3706.5,15.84]
[1640997555986,4.87e-06,3706.6,3706.5,15.84]
[1640997556185,6.18,3708.3,3706.5,15.84]
[1640997556186,6.18,3708.3,3706.7,4.9]
[1640997556388,6.18,3708.3,3707.1,0.67422]
[1640997556389,0.44701626,3708.3,3707.1,0.67422]
[1640997556651,6.14237626,3709.4,3708.3,0.2151661]
[1640997556859,6.14237626,3709.4,3709.0,0.01208643]
[1640997556860,11.97887126,3709.4,3709.0,0.01208643]
[1640997557057,0.01648428,3709.3,3709.0,0.01208643]
[1640997557254,0.01648428,3709.3,3709.1,0.67393]
[1640997557455,0.01591586,3709.2,3709.1,2.23722]
[1640997557660,0.01591586,3709.2,3709.1,3.57090391]
[1640997557857,0.01591586,3709.2,3709.1,3.67730391]
[1640997558155,0.01591586,3709.2,3709.1,20.51890391]
[1640997558354,0.01591586,3709.2,3709.1,20.52370391]
[1640997558555,0.01591586,3709.2,3709.1,20.51890391]
[1640997558756,1.586e-05,3709.2,3709.1,20.51890391]
[1640997558955,1.586e-05,3709.2,3709.1,33.4368193]
[1640997559154,6.18,3709.5,3709.1,33.4424193]
[1640997559355,0.5,3710.0,3709.1,33.4424193]
[1640997559356,0.5,3710.0,3709.5,1.87945452]
[1640997559659,0.00944627,3711.2,3710.4,0.67367]
[1640997559856,0.00944627,3711.2,3710.7,0.686179]
[1640997560056,0.01080004,3711.1,3710.6,0.4177]
[1640997560257,0.01080004,3711.1,3710.6,0.2658]
[1640997560491,0.01023162,3711.0,3709.9,0.1048]
[1640997560695,0.98331983,3711.3,3710.4,0.3]
[1640997560891,0.98331983,3711.3,3709.8,1.1056]
[1640997560892,0.98331983,3711.3,3710.3,0.67372]
[1640997561091,0.00113685,3711.2,3710.2,3.3013092]
[1640997561291,0.00113685,3711.2,3710.4,1.35069054]
[1640997561493,0.00795793,3712.4,3710.3,3.63417896]
[1640997561698,0.00795793,3712.4,3710.6,0.3]
[1640997561899,0.67378,3712.1,3710.6,0.3]
[1640997562097,0.67378,3712.1,3710.7,0.00909477]
[1640997562098,1.1859248,3711.5,3710.7,0.00909477]
[1640997562298,0.67378,3712.1,3710.7,0.00909477]
[1640997563500,1.20129733,3711.8,3710.7,0.00909477]
[1640997564160,1.15129733,3711.8,3710.7,0.00909477]
[1640997564962,1.45129733,3711.8,3710.7,0.00909477]
[1640997565162,1.45129733,3711.8,3710.2,1.33554251]
[1640997565163,1.15129733,3711.8,3710.4,0.01080004]
[1640997565368,1.45129733,3711.8,3710.3,0.01136846]
[1640997565567,1.15129733,3711.8,3710.3,0.01136846]
[1640997565963,1.15129733,3711.8,3710.3,2.7]
[1640997566165,1.15129733,3711.8,3710.6,1.28178687]
[1640997566566,1.15129733,3711.8,3710.7,0.00909477]
[1640997566769,1.00129733,3711.8,3710.7,0.00909477]
[1640997567167,0.0014031,3711.7,3710.7,0.00909477]
[1640997568191,0.1094791,3711.7,3710.7,0.00909477]
[1640997569694,0.1094791,3711.7,3710.7,2.27375731]
[1640997570093,0.1094791,3711.7,3710.8,0.00852635]
[1640997570496,3.7042,3712.3,3710.8,0.00852635]
[1640997570696,1.2404416,3711.9,3710.9,0.01294275]
[1640997570994,1.2404416,3711.9,3711.0,0.0073895]
[1640997571198,1.8404416,3711.9,3711.0,0.0073895]
[1640997571748,1.8404416,3711.9,3710.4,0.01080004]
[1640997572151,1.05829696,3710.7,3710.4,0.01080004]
[1640997572349,0.67396,3711.2,3710.4,0.01080004]
[1640997572749,1.64783,3711.7,3710.4,0.01080004]
[1640997573151,1.94783,3711.7,3710.4,0.01080004]
[1640997573549,1.21881638,3711.0,3710.4,0.01080004]
[1640997576182,1.32689238,3711.0,3710.4,0.01080004]
[1640997578190,0.00086898,3710.9,3710.4,0.01080004]
[1640997580036,1.31850953,3711.0,3710.4,0.01080004]
[1640997583284,1.21850953,3711.0,3710.4,0.01080004]
[1640997586627,1.21043353,3711.0,3710.4,0.01080004]
[1640997587535,1.31850953,3711.0,3710.4,0.01080004]
[1640997589639,1.21850953,3711.0,3710.4,0.01080004]
[1640997590238,0.108076,3711.0,3710.4,0.01080004]
[1640997592995,0.108076,3711.0,3710.4,1.36446186]
[1640997593395,0.108076,3711.0,3710.7,1.33554251]
[1640997593796,0.108076,3711.0,3710.8,0.00852635]
[1640997594238,0.108076,3711.0,3710.8,1.34406886]
[1640997594634,0.108076,3711.0,3710.9,0.00795792]
[1640997595036,0.108076,3711.0,3710.7,1.33554251]
[1640997595037,0.108076,3711.0,3710.8,0.00852635]
[1640997596645,0.108076,3711.0,3710.9,1.33554251]
[1640997596846,0.108076,3711.0,3710.8,0.00852635]
[1640997597043,0.781996,3711.0,3710.9,0.00795792]
[1640997597244,0.781996,3711.0,3710.7,0.00909477]
[1640997597642,0.67392,3711.0,3710.7,0.00909477]
[1640997599383,0.781996,3711.0,3710.7,0.00909477]
[1640997599782,4.9,3710.9,3710.6,0.38553176]
[1640997599982,0.67399,3710.8,3710.6,0.38553176]
[1640997600182,1.67399,3710.8,3710.6,0.38553176]
[1640997600383,4.55,3710.7,3710.5,0.05996552]
[1640997600581,1.27399,3710.8,3710.5,0.05996552]
[1640997600780,0.67399,3710.8,3710.5,0.05996552]
[1640997600981,1.41224091,3710.7,3710.5,0.05996552]
[1640997601182,1.41224091,3710.7,3710.3,2.7]
[1640997601382,1.41224091,3710.7,3710.3,2.25]
[1640997601383,2.01224091,3710.7,3710.3,2.25]
[1640997601635,2.3,3710.3,3709.7,1.78214734]
[1640997601834,3.1032,3710.3,3709.7,1.78214734]
[1640997602040,4.9,3710.2,3709.5,4.45758791]
[1640997602235,1.5,3710.0,3709.5,4.45758791]
[1640997602540,1.5,3710.0,3709.6,0.00113685]
[1640997602541,2.65200305,3709.9,3709.6,0.00113685]
[1640997602737,2.95200305,3709.9,3709.6,0.00113685]
[1640997602934,1.0,3709.8,3709.6,0.00113685]
[1640997603134,1.3,3709.8,3709.6,0.00113685]
[1640997603739,1.97433,3709.8,3709.6,0.00113685]
[1640997604938,0.67433,3709.8,3709.6,0.00113685]
[1640997605790,0.67433,3709.8,3709.6,2.70113685]
[1640997606486,0.97433,3709.8,3709.6,2.70113685]
[1640997606897,0.67433,3709.8,3709.6,2.70113685]
[1640997607793,0.97433,3709.8,3709.6,2.70113685]
[1640997607994,1.97433,3709.8,3709.6,2.70113685]
[1640997608798,0.67433,3709.8,3709.6,2.70113685]
[1640997609442,0.67433,3709.8,3708.2,0.40510933]
[1640997609443,1.87945452,3709.5,3708.2,0.40510933]
[1640997609643,0.67432,3708.9,3708.2,0.40510933]
[1640997609839,0.67432,3708.9,3708.3,0.0073895]
[1640997610444,1.00014472,3708.8,3708.3,0.0073895]
[1640997610642,0.67442,3708.6,3708.3,0.0073895]
[1640997612644,0.67442,3708.6,3707.6,0.01136847]
[1640997613090,1.09830851,3708.2,3707.6,0.01136847]
[1640997613389,1.09830851,3708.2,3707.4,0.01250532]
[1640997613793,0.67434,3708.4,3707.4,0.01250532]
[1640997614092,0.0579,3709.1,3707.4,0.01250532]
[1640997614093,0.0579,3709.1,3707.6,0.51251546]
[1640997614292,0.0579,3709.1,3707.7,2.30602341]
[1640997614494,0.0579,3709.1,3707.7,2.15742967]
[1640997614694,0.0579,3709.1,3707.8,0.01023162]
[1640997614891,1.42407184,3709.0,3708.3,1.22890126]
[1640997615290,1.42407184,3709.0,3708.4,0.00682108]
[1640997616093,1.17407184,3709.0,3708.4,0.00682108]
[1640997616293,1.47407184,3709.0,3707.8,0.01023162]
[1640997616494,0.67439,3708.4,3707.8,0.01023162]
[1640997616940,1.17407184,3709.0,3707.8,0.01023162]
[1640997617340,7.3598,3709.7,3707.8,2.20462016]
[1640997617341,3.7137,3709.7,3707.8,2.20462016]
[1640997617538,3.7137,3709.7,3708.5,0.01262569]
[1640997617539,0.67414,3709.6,3708.5,0.01262569]
[1640997617739,3.7137,3709.7,3708.5,0.01262569]
[1640997618036,3.7137,3709.7,3708.6,0.00568423]
[1640997618636,1.29485084,3709.1,3708.6,0.00568423]
[1640997619236,1.29485084,3709.1,3708.4,0.00682108]
[1640997619436,1.29485084,3709.1,3708.1,2.1564658]
[1640997619637,1.29485084,3709.1,3708.2,0.00795793]